[Event "WSTCC-50 2024"]
[Site "Krakow"]
[Date "2024.07.07"]
[Round "6.6"]
[White "Grawe, Christian"]
[Black "Kirkebo, Carl Peter"]
[Result "1-0"]
[ECO "B40"]
[WhiteElo "2232"]
[BlackElo "2160"]
[Annotator "TA"]
[PlyCount "81"]
[EventDate "2024.07.01"]
[EventType "team-tourn"]
[EventCountry "POL"]
[SourceTitle "playchess.com"]
[Source "ChessBase"]
[SourceQuality "1"]
[TimeControl "40/5400+30:1800+30"]

{[%evp 20,81,30,38,63,53,80,66,122,132,133,64,85,60,114,93,203,196,221,227,209,135,123,137,145,155,150,145,150,141,124,132,276,247,282,275,356,354,351,350,582,461,1244,1165,1328,1327,1317,864,851,697,732,728,777,687,661,582,656,630,662,656,829,821,1170,1109]} 1. e4 {[%emt 0:00:07]} c5 {[%emt 0:00:09]} 2. Nf3 {[%emt 0:00:11]} e6 {[%emt 0:00:16]} 3. c3 {[%emt 0:00:23][%cal Bc2c3,Bc3d4,Bd4e5][%mdl 32]} Nf6 {[%emt 0:00:37]} 4. e5 {[%emt 0:00:08]} Nd5 {[%emt 0:00:13]} 5. Bc4 {[%emt 0:00:16]} d6 {[%emt 0:00:47]} 6. d4 {[%emt 0:00:34]} cxd4 {[%emt 0:01:05]} 7. cxd4 {[%emt 0:00:09]} Nc6 {[%emt 0:04:45]} 8. O-O {[%emt 0:00:13]} Be7 {[%emt 0:04:07]} 9. Qe2 {[%emt 0:00:47]} Nb6 {[%emt 0:02:52]} 10. Bb3 {[%emt 0:01:46]} O-O {[%emt 0:09:57]} 11. Nc3 {[%emt 0:00:26]} dxe5 {[%emt 0:04:07]} 12. dxe5 {[%emt 0:01:46]} Qc7 {[%emt 0:05:21]} 13. Re1 {[%emt 0:03:52]} Bd7 {[%emt 0:03:37]} (13... Rd8 $14) 14. Qe4 $16 {[%emt 0:01:32]} Nb4 {[%emt 0:09:11]} 15. Bg5 {[%emt 0:11:36]} (15. Ng5 $16 Bxg5 16. Bxg5) 15... Bc6 $14 {[%emt 0:06:21]} 16. Qh4 {[%emt 0:01:26]} Rae8 {[%emt 0:06:47]} ({Black should play} 16... Rfe8 $1 $14) 17. Ne4 {[%emt 0:01:34]} N6d5 {[%emt 0:09:05] Against Nf6+} (17... Bxe4 $16 18. Qxe4 (18. Rxe4 N6d5 $16) 18... Rc8) 18. Rad1 $40 {[%emt 0:07:43][%mdl 128] White has strong attack.} Bxg5 {[%emt 0:05:51]} 19. Nfxg5 {[%emt 0:16:16][%csl Gg5][%cal Rh4h7]} (19. Nexg5 $6 h6 $16) 19... h6 {[%emt 0:00:28][%cal Oc7e5]} 20. a3 {[%emt 0:00:38]} Qxe5 {[%emt 0:08:47]} 21. axb4 {[%emt 0:07:16][%cal Ob4b5] b5! would now be deadly.} hxg5 {[%emt 0:01:30]} 22. Nxg5 {[%emt 0:00:12]} Qf5 {[%emt 0:00:39] [#] Against Qh7+} 23. b5 $1 {[%emt 0:06:01][%mdl 512]} Bxb5 {[%emt 0:04:14] [#]} 24. Re5 $3 {[%emt 0:05:45][%mdl 512] The board is on fire.} Qg6 {[%emt 0:01:20]} 25. Ne4 {[%emt 0:01:50][%mdl 1024] White has strong compensation. White is more active.} f5 {[%emt 0:04:30] [#] This move loses the game for Black.} (25... Be2 $16 26. Re1 Bf3) 26. Ng5 $1 {[%emt 0:07:10]} Bc6 {[%emt 0:00:38]} 27. f4 {[%emt 0:02:39][%cal Oe5e6] Rxe6! is the strong threat.} Rf6 {[%emt 0:02:05]} 28. Rd3 {[%emt 0:01:58] Hoping for Rh3.} Qh6 {[%emt 0:01:04] [#]} 29. Qf2 {[%emt 0:00:25][%cal Od3h3] Strongly threatening Rh3!} Qh5 {[%emt 0:00:29]} (29... Nc7 30. Rh3 (30. Qxa7 Rc8 $18) 30... Qg6) 30. Rh3 {[%emt 0:00:50] White is clearly winning.} (30. Qxa7 $2 Nxf4 31. Nxe6 Nxe6 $19 (31... Nxd3 $2 32. Nf4+ Kh8 33. Nxh5 $19)) 30... Qg4 {[%emt 0:00:33]} (30... Qg6 $142 31. Bd1 (31. Qxa7 Nxf4 32. Rg3 Ne2+ 33. Rxe2 f4 $11) 31... Rff8) 31. Rh4 {[%emt 0:00:16]} (31. Qxa7 $2 {is the wrong capture.} Nxf4 (31... Qxf4 $2 32. Nf3 $19) 32. Rg3 Ne2+ 33. Rxe2 Qxe2 $19) 31... Nxf4 {[%emt 0:01:21]} 32. Rxg4 {[%emt 0:00:34]} fxg4 {[%emt 0:00:12][%cal Bf5g4,Bg4g3][%mdl 32]} 33. Qc2 {[%emt 0:01:29]} g6 {[%emt 0:00:47]} 34. Ba4 {[%emt 0:06:34]} Bxa4 {[%emt 0:01:47]} 35. Qxa4 {[%emt 0:00:04]} Ref8 {[%emt 0:00:06]} 36. h4 {[%emt 0:01:08][%cal Oa4d7] And now Qd7! would win.} (36. Qxa7 $2 {leads to mate.} Ne2+ 37. Kh1 Rf1+) 36... g3 {[%emt 0:01:40][%cal Of4e2] ( -> ...Ne2+!)} 37. Nf3 {[%emt 0:00:47]} (37. Qxa7 $2 {gets mated.} Ne2+ 38. Kh1 Rf1+) 37... a6 {[%emt 0:00:25]} 38. Qe4 {[%emt 0:00:39]} Rd8 {[%emt 0:01:01]} 39. Qc2 {[%emt 0:01:36] Dodges Rd1+} Rd3 {[%emt 0:00:38]} 40. Rg5 {[%emt 0:01:16]} Kh7 {[%emt 0:00:35]} 41. Rxg3 {[%emt 0:30:25] Weighted Error Value: White=0.30/Black=0.55.  Mistake:       	White=1     	Black=6      Inaccurate:     	White=1     	Black=1      OK:         	White=9     	Black=4      Best:        	White=3     	Black=3      Strong:       	White=1     	---} 1-0

[Event "WSTCC-50 2024"]
[Site "Krakow"]
[Date "2024.07.07"]
[Round "6.6"]
[White "Davis, Lee"]
[Black "Forgo, Eva"]
[Result "1/2-1/2"]
[ECO "D00"]
[WhiteElo "1932"]
[BlackElo "2060"]
[Annotator "NA RC"]
[PlyCount "28"]
[EventDate "2024.07.01"]
[EventType "team-tourn"]
[EventCountry "POL"]
[SourceTitle "playchess.com"]
[Source "ChessBase"]
[SourceQuality "1"]
[TimeControl "40/5400+30:1800+30"]

1. d4 {[%emt 0:00:03]} d5 {[%emt 0:00:16]} 2. g3 {[%emt 0:00:10]} Nf6 {[%emt 0:00:24]} 3. Bg2 {[%emt 0:00:07]} c6 {[%emt 0:00:22]} 4. Nf3 {[%emt 0:00:05]} Bf5 {[%emt 0:00:35]} 5. c4 {[%emt 0:00:06]} e6 {[%emt 0:01:29]} 6. O-O {[%emt 0:00:05]} Nbd7 {[%emt 0:03:39]} 7. Nc3 {[%emt 0:00:06]} h6 {[%emt 0:04:08]} 8. Qb3 {[%emt 0:01:16]} Qb6 {[%emt 0:03:40]} 9. c5 {[%emt 0:01:20]} Qxb3 {[%emt 0:00:44]} 10. axb3 {[%emt 0:00:06]} a6 {[%emt 0:00:06]} 11. b4 {[%emt 0:00:17]} Rc8 {[%emt 0:01:38]} 12. h4 {[%emt 0:05:54]} Be7 {[%emt 0:02:06]} 13. Bf4 {[%emt 0:00:26]} O-O {[%emt 0:00:55]} 14. Ne5 {[%emt 0:04:50]} Nxe5 {[%emt 0:06:15]} 1/2-1/2

[Event "WSTCC-50 2024"]
[Site "Krakow"]
[Date "2024.07.07"]
[Round "6.7"]
[White "Berg, Anders Hoyer"]
[Black "Kempter, Ronald"]
[Result "1/2-1/2"]
[ECO "C56"]
[WhiteElo "2079"]
[BlackElo "2204"]
[Annotator "TA"]
[PlyCount "73"]
[EventDate "2024.07.01"]
[EventType "team-tourn"]
[EventCountry "POL"]
[SourceTitle "playchess.com"]
[Source "ChessBase"]
[SourceQuality "1"]
[TimeControl "40/5400+30:1800+30"]

{[%evp 29,73,0,0,7,10,0,-6,0,-8,-6,0,0,-1,0,-6,-5,31,31,31,31,31,22,15,15,22,22,38,31,37,37,122,52,58,0,0,0,0,0,0,0,0,0,0,0,0,-172]} 1. e4 {[%emt 0:00:08]} e5 {[%emt 0:00:11]} 2. Nf3 {[%emt 0:00:07]} Nc6 {[%emt 0:00:15]} 3. d4 {[%emt 0:00:24]} exd4 {[%emt 0:00:09]} 4. Bc4 {[%emt 0:00:11]} Nf6 {[%emt 0:00:33]} 5. O-O {[%emt 0:00:23]} Nxe4 {[%emt 0:00:15]} 6. Re1 {[%emt 0:00:19]} d5 {[%emt 0:00:07]} 7. Bxd5 {[%emt 0:00:13]} Qxd5 {[%emt 0:00:06]} 8. Nc3 {[%emt 0:00:10]} Qa5 {[%emt 0:00:05]} 9. Nxe4 {[%emt 0:01:11]} Be6 {[%emt 0:00:05]} 10. Neg5 {[%emt 0:01:21]} O-O-O {[%emt 0:00:09]} 11. Nxe6 {[%emt 0:00:16]} fxe6 {[%emt 0:00:05]} 12. Rxe6 {[%emt 0:00:18]} Bd6 {[%emt 0:00:17]} 13. Bg5 {[%emt 0:01:39]} Rde8 {[%emt 0:00:14]} 14. Qe1 {[%emt 0:03:51]} Qxe1+ {[%emt 0:07:38]} 15. Raxe1 {[%emt 0:00:06]} Kd7 {[%emt 0:00:55][%cal Bc8d7,Bd7e8,Be8f7,Bf7e6,Be6d5][%mdl 32]} 16. Rxe8 {[%emt 0:01:00]} Rxe8 {[%emt 0:00:05]} 17. Rxe8 {[%emt 0:01:01]} Kxe8 $11 {[%emt 0:00:04][%mdl 4096] Endgame. KBN-KBN} 18. Kf1 {[%emt 0:05:25]} Kf7 {[%emt 0:13:22]} 19. Bd2 {[%emt 0:04:47]} h6 {[%emt 0:11:44]} 20. Ke2 {[%emt 0:02:52]} Ke6 {[%emt 0:10:30]} 21. Kd3 {[%emt 0:03:26][%cal Od3e4]} Kd5 {[%emt 0:03:26]} 22. Nxd4 {[%emt 0:06:01] [#] aiming for c4+.} Nxd4 {[%emt 0:24:00]} 23. c4+ {[%emt 0:00:21]} Ke6 {[%emt 0:02:26]} 24. Kxd4 $14 {[%emt 0:00:14] KB-KB} Be5+ {[%emt 0:00:34]} 25. Ke4 {[%emt 0:05:29] Hoping for Bc3.} Bxb2 {[%emt 0:00:33]} 26. g4 {[%emt 0:17:19]} Bf6 {[%emt 0:12:27] Wards off h4} 27. f4 {[%emt 0:08:39][%cal Bf2f4,Bf4f5][%mdl 32]} c6 {[%emt 0:01:37]} 28. f5+ {[%emt 0:12:19]} Kd6 {[%emt 0:03:39]} 29. Bb4+ {[%emt 0:03:58]} c5 {[%emt 0:01:00]} (29... Kc7 $14) 30. Be1 {[%emt 0:11:17]} ({White should try} 30. Bd2 $16) 30... a6 {[%emt 0:00:47]} 31. Bg3+ {[%emt 0:05:09]} ({White should play} 31. a4 $1 $14) 31... Kc6 $11 {[%emt 0:00:33] The position is equal.} 32. Kd3 {[%emt 0:04:37]} b5 {[%emt 0:00:51]} 33. h3 {[%emt 0:01:06]} Kb6 {[%emt 0:02:12]} 34. Be1 {[%emt 0:00:48]} Kc6 {[%emt 0:02:39]} 35. Bg3 {[%emt 0:00:18]} Kb6 {[%emt 0:01:41]} 36. Be1 {[%emt 0:00:06]} Kc6 {[%emt 0:00:37]} 37. Ke4 $2 {Weighted Error Value: White=0.09 (flawless) /Black=0.10 (very precise) .  Loses game:     	White=1     	---        Mistake:       	White=2     	Black=1      Inaccurate:     	---       	Black=1      OK:         	White=8     	Black=9      Best:        	White=1     	Black=2} (37. Bg3 $11 {and White is okay.}) 1/2-1/2

[Event "WSTCC-50 2024"]
[Site "Krakow"]
[Date "2024.07.07"]
[Round "6.7"]
[White "Csom, Etelka"]
[Black "Adams, Mark"]
[Result "1/2-1/2"]
[ECO "B23"]
[WhiteElo "1996"]
[BlackElo "1951"]
[Annotator "NA RC"]
[PlyCount "22"]
[EventDate "2024.07.01"]
[EventType "team-tourn"]
[EventCountry "POL"]
[SourceTitle "playchess.com"]
[Source "ChessBase"]
[SourceQuality "1"]
[TimeControl "40/5400+30:1800+30"]

1. e4 {[%emt 0:00:04]} c5 {[%emt 0:00:08]} 2. Nc3 {[%emt 0:00:18]} a6 {[%emt 0:00:06]} 3. g3 {[%emt 0:00:14]} b5 {[%emt 0:00:10]} 4. Bg2 {[%emt 0:00:14]} Bb7 {[%emt 0:00:07]} 5. d3 {[%emt 0:00:30]} e6 {[%emt 0:00:08]} 6. a3 {[%emt 0:03:54]} Nf6 {[%emt 0:06:04]} 7. Nge2 {[%emt 0:01:23]} d6 {[%emt 0:02:21]} 8. O-O {[%emt 0:00:42]} Nc6 {[%emt 0:07:05]} 9. h3 {[%emt 0:02:01]} Qc7 {[%emt 0:03:15]} 10. Be3 {[%emt 0:00:45]} Rc8 {[%emt 0:06:34]} 11. f4 {[%emt 0:02:30]} g6 {[%emt 0:05:16]} 1/2-1/2

[Event "WSTCC-50 2024"]
[Site "Krakow"]
[Date "2024.07.07"]
[Round "6.8"]
[White "Novikov, Igor"]
[Black "Townsend, M Paul"]
[Result "1-0"]
[ECO "D37"]
[WhiteElo "2509"]
[BlackElo "2147"]
[Annotator "TA"]
[PlyCount "75"]
[EventDate "2024.07.01"]
[EventType "team-tourn"]
[EventCountry "POL"]
[SourceTitle "playchess.com"]
[Source "ChessBase"]
[SourceQuality "1"]
[TimeControl "40/5400+30:1800+30"]

{[%evp 9,75,22,22,15,31,16,28,29,35,0,0,16,8,0,0,0,0,-6,-9,-4,-3,-5,0,0,14,0,0,0,0,0,0,0,32,0,44,16,42,15,56,0,24,0,0,-23,105,78,114,15,4,6,70,62,158,161,418,415,347,312,437,433,343,350,770,724,925,873,5397,3164]} 1. d4 {[%emt 0:00:03]} e6 {[%emt 0:00:26]} 2. c4 {[%emt 0:00:15]} Nf6 {[%emt 0:00:16]} 3. Nf3 {[%emt 0:00:15]} d5 {[%emt 0:00:23]} 4. Nc3 {[%emt 0:00:51]} a6 {[%emt 0:00:30]} 5. cxd5 {[%emt 0:02:35]} exd5 {[%emt 0:00:08]} 6. Bg5 {[%emt 0:00:46]} Be6 {[%emt 0:00:29]} 7. e3 {[%emt 0:03:31]} Nbd7 {[%emt 0:00:27]} 8. Bd3 {[%emt 0:01:30] White has an edge.} Bd6 {[%emt 0:00:24]} 9. Bf4 {[%emt 0:00:47]} Bxf4 {[%emt 0:00:23]} 10. exf4 {[%emt 0:00:04] Strongly threatening f5.} Bg4 {[%emt 0:00:30]} 11. Qe2+ {[%emt 0:02:27]} Kf8 $1 {[%emt 0:02:40]} 12. O-O {[%emt 0:05:49]} c6 {[%emt 0:05:18]} 13. Rfe1 {[%emt 0:19:17]} g6 {[%emt 0:03:53]} 14. h3 {[%emt 0:01:22]} Bxf3 {[%emt 0:00:12]} 15. Qxf3 {[%emt 0:00:03]} Kg7 {[%emt 0:00:41]} 16. g4 {[%emt 0:01:24][%cal Bg2g4,Bg4g5][%mdl 32]} Qc7 {[%emt 0:14:13]} 17. Re3 {[%emt 0:07:10]} Qb6 {[%emt 0:21:52][%csl LRb2,LRd4]} 18. Ne2 {[%emt 0:12:48]} Rhe8 {[%emt 0:01:58]} 19. g5 {[%emt 0:01:32]} Nh5 {[%emt 0:01:31]} 20. f5 {[%emt 0:05:02]} Qb4 {[%emt 0:11:51]} 21. Rd1 {[%emt 0:03:21]} (21. Nf4 {with more complications.} Qxd4 22. Nxh5+ gxh5 23. f6+) 21... Qd6 {[%emt 0:06:17]} 22. Re1 {[%emt 0:01:13] Ng3 is the strong threat.} Kg8 {[%emt 0:09:45]} (22... Rxe3 {simplifies} 23. Qxe3 Kg8 24. Ng3 Ng7) 23. a3 {[%emt 0:02:46]} Re7 {[%emt 0:02:26]} 24. f6 {[%emt 0:04:19]} (24. Ng3 $14 Rxe3 25. Qxe3) 24... Rxe3 {[%emt 0:04:33]} 25. fxe3 {[%emt 0:02:13]} (25. Qxe3 {simplifies} Nf8 26. f4 Qe6 27. Qxe6 Nxe6 28. Rf1) 25... Nf8 {[%emt 0:01:27][%cal Bd7f8,Bf8g6,Bg6h4][%mdl 32]} 26. Bf5 {[%emt 0:03:54]} gxf5 {[%emt 0:06:12]} (26... Nxf6 $11 {keeps the balance.} 27. gxf6 gxf5) 27. Qxh5 $16 {[%emt 0:00:04]} Ng6 {[%emt 0:00:29] [#]} 28. Qh6 {[%emt 0:08:29] White is more active.} (28. Rf1 $1 $16) 28... Qf8 $11 {[%emt 0:00:08] Black is weak on the dark squares} 29. Qxf8+ {[%emt 0:00:21]} Kxf8 {[%emt 0:01:00][%mdl 4096] Endgame. KRN-KRN} (29... Rxf8 $11 30. Kf2 h6) 30. Kf2 {[%emt 0:02:32][%cal Oh3h4]} Re8 {[%emt 0:00:28] [#]} ({Black should play} 30... Kg8 $1 $14) 31. h4 $1 $16 {[%emt 0:01:23]} Nxh4 {[%emt 0:01:15]} (31... f4) 32. Rh1 $18 {[%emt 0:00:21]} Ng6 {[%emt 0:00:11]} (32... Re4 33. Nf4 Ng6 34. Rxh7) 33. Rxh7 {[%emt 0:00:17]} Kg8 {[%emt 0:01:04]} (33... Re4 {was worth a try.} 34. Nf4 a5) 34. Rg7+ {[%emt 0:01:10]} Kf8 {[%emt 0:00:10]} 35. Ng3 {[%emt 0:01:00]} (35. Nf4 Nxf4 36. exf4 Re4 $11) 35... f4 {[%emt 0:00:40]} (35... Ne7 36. b3 (36. fxe7+ $2 {loses.} Kxg7 37. Nxf5+ Kg6 $19) (36. Rh7 Kg8 $18) 36... a5) 36. exf4 {[%emt 0:01:23] And now Nf5 would win. White is clearly winning.} Nxf4 {[%emt 0:00:20]} 37. Nf5 {[%emt 0:00:37] Hoping for Nh6.} Rd8 {[%emt 0:03:20]} 38. Nh6 {[%emt 0:00:29] Weighted Error Value: White=0.13 (very precise) /Black=0.35.  Mistake:       	White=2     	Black=6      Inaccurate:     	White=3     	Black=4      OK:         	White=10    	Black=6      Best:        	White=4     	Black=3      Strong:       	White=1     	Black=1} 1-0

[Event "WSTCC-50 2024"]
[Site "Krakow"]
[Date "2024.07.07"]
[Round "6.8"]
[White "Pieper, Thomas"]
[Black "Harstad, Christian"]
[Result "1-0"]
[ECO "B33"]
[WhiteElo "2170"]
[BlackElo "1917"]
[Annotator "RC"]
[PlyCount "83"]
[EventDate "2024.07.01"]
[EventType "team-tourn"]
[EventCountry "POL"]
[SourceTitle "playchess.com"]
[Source "ChessBase"]
[SourceQuality "1"]
[TimeControl "40/5400+30:1800+30"]

1. e4 {[%emt 0:00:03]} c5 {[%emt 0:00:05]} 2. Nf3 {[%emt 0:00:16]} Nc6 {[%emt 0:00:06]} 3. d4 {[%emt 0:00:35]} cxd4 {[%emt 0:00:06]} 4. Nxd4 {[%emt 0:00:06]} Nf6 {[%emt 0:00:09]} 5. Nc3 {[%emt 0:00:22]} e5 {[%emt 0:00:20]} 6. Ndb5 {[%emt 0:00:56]} d6 {[%emt 0:00:48]} 7. Bg5 {[%emt 0:00:19]} a6 {[%emt 0:00:12]} 8. Na3 {[%emt 0:00:32]} b5 {[%emt 0:00:09]} 9. Nd5 {[%emt 0:01:31]} Be7 {[%emt 0:00:27]} 10. Bxf6 {[%emt 0:00:09]} Bxf6 {[%emt 0:00:13]} 11. c4 {[%emt 0:00:35]} b4 {[%emt 0:06:44]} 12. Nc2 {[%emt 0:00:10]} O-O {[%emt 0:02:12]} 13. h4 {[%emt 0:00:52]} g6 {[%emt 0:09:50]} 14. g3 {[%emt 0:04:30]} Bg7 {[%emt 0:03:15]} 15. Bg2 {[%emt 0:14:07]} a5 {[%emt 0:02:19]} 16. Qd2 {[%emt 0:14:19]} Nb8 {[%emt 0:06:13]} 17. Rd1 {[%emt 0:12:04]} Ra6 {[%emt 0:02:44]} 18. Qg5 {[%emt 0:04:40]} f6 {[%emt 0:03:10]} 19. Qe3 {[%emt 0:03:57]} Be6 {[%emt 0:13:59]} 20. a3 {[%emt 0:12:44]} Bxd5 {[%emt 0:18:20]} 21. Rxd5 {[%emt 0:00:19]} Nd7 {[%emt 0:04:14]} 22. h5 {[%emt 0:05:59]} Nb6 {[%emt 0:04:13]} 23. Rd2 {[%emt 0:05:28]} Qc7 {[%emt 0:05:08]} 24. hxg6 {[%emt 0:00:27]} hxg6 {[%emt 0:00:44]} 25. Bf1 {[%emt 0:09:41]} Raa8 {[%emt 0:02:01]} 26. axb4 {[%emt 0:01:38]} axb4 {[%emt 0:00:32]} 27. Qd3 {[%emt 0:00:56]} d5 {[%emt 0:05:41]} 28. cxd5 {[%emt 0:01:26]} Qd6 {[%emt 0:00:17]} 29. Bh3 {[%emt 0:00:47]} Bh6 {[%emt 0:01:04]} 30. Re2 {[%emt 0:01:34]} Na4 {[%emt 0:02:30]} 31. Ne3 {[%emt 0:01:48]} Nc5 {[%emt 0:01:00]} 32. Qb1 {[%emt 0:00:17]} Bxe3 {[%emt 0:00:37]} 33. Rxe3 {[%emt 0:00:25]} f5 {[%emt 0:02:10]} 34. exf5 {[%emt 0:00:43]} Qxd5 {[%emt 0:01:08]} 35. O-O {[%emt 0:00:19]} gxf5 {[%emt 0:03:18]} 36. Bxf5 {[%emt 0:00:49]} Rad8 {[%emt 0:00:02]} 37. Bh3 {[%emt 0:00:50]} Rf6 {[%emt 0:00:34]} 38. Qe1 {[%emt 0:01:09]} Nd3 {[%emt 0:00:31]} 39. Qe2 {[%emt 0:00:35]} Nc5 {[%emt 0:00:54]} 40. Rxe5 {[%emt 0:00:38]} Qd4 {[%emt 0:01:04]} 41. Rg5+ {[%emt 0:31:51]} Kf8 {[%emt 0:03:18]} 42. Qh5 {[%emt 0:00:00]} 1-0

[Event "WSTCC-50 2024"]
[Site "Krakow"]
[Date "2024.07.07"]
[Round "6.8"]
[White "Thomas, Gary"]
[Black "Kozma, Edit"]
[Result "1/2-1/2"]
[ECO "B50"]
[WhiteElo "1865"]
[BlackElo "1859"]
[Annotator "NA RC"]
[PlyCount "26"]
[EventDate "2024.07.01"]
[EventType "team-tourn"]
[EventCountry "POL"]
[SourceTitle "playchess.com"]
[Source "ChessBase"]
[SourceQuality "1"]
[TimeControl "40/5400+30:1800+30"]

1. e4 {[%emt 0:00:05]} c5 {[%emt 0:00:17]} 2. Nf3 {[%emt 0:00:13]} d6 {[%emt 0:00:17]} 3. c3 {[%emt 0:00:14]} Nf6 {[%emt 0:00:53]} 4. Be2 {[%emt 0:00:08]} g6 {[%emt 0:01:43]} 5. h3 {[%emt 0:00:16]} Bg7 {[%emt 0:00:18]} 6. O-O {[%emt 0:00:16]} O-O {[%emt 0:00:12]} 7. d3 {[%emt 0:00:07]} Nc6 {[%emt 0:01:45]} 8. Be3 {[%emt 0:00:24]} c4 {[%emt 0:14:12]} 9. Nbd2 {[%emt 0:06:28]} cxd3 {[%emt 0:00:21]} 10. Bxd3 {[%emt 0:00:08]} Bd7 {[%emt 0:08:04]} 11. Qe2 {[%emt 0:07:56]} Qc7 12. Nd4 Bc8 13. N4f3 Bd7 1/2-1/2

[Event "WSTCC-50 2024"]
[Site "Krakow"]
[Date "2024.07.07"]
[Round "6.9"]
[White "David, Alberto"]
[Black "Oratovsky, Michael"]
[Result "1/2-1/2"]
[ECO "B43"]
[WhiteElo "2502"]
[BlackElo "2417"]
[Annotator "TA"]
[PlyCount "32"]
[EventDate "2024.07.01"]
[EventType "team-tourn"]
[EventCountry "POL"]
[SourceTitle "playchess.com"]
[Source "ChessBase"]
[SourceQuality "1"]
[TimeControl "40/5400+30:1800+30"]

{[%evp 15,32,24,27,33,33,30,36,29,16,20,20,8,5,10,0,6,0,0,0]} 1. e4 {[%emt 0:00:04]} c5 {[%emt 0:07:48]} 2. Nf3 {[%emt 0:00:16]} e6 {[%emt 0:05:14]} 3. d4 {[%emt 0:00:43]} cxd4 {[%emt 0:00:12]} 4. Nxd4 {[%emt 0:00:06]} a6 {[%emt 0:00:04]} 5. Nc3 {[%emt 0:00:54]} b5 {[%emt 0:00:37]} 6. Bd3 {[%emt 0:00:25]} Bb7 {[%emt 0:00:33]} 7. O-O {[%emt 0:03:31]} Nc6 {[%emt 0:00:30]} 8. Nxc6 {[%emt 0:02:06]} Bxc6 {[%emt 0:00:06]} 9. Re1 {[%emt 0:07:50]} Ne7 {[%emt 0:04:16]} 10. Be3 {[%emt 0:12:57]} Ng6 {[%emt 0:19:41]} 11. a4 {[%emt 0:00:59][%cal Ra4b5] White is slightly better.} (11. Bf1 $5) 11... Bb4 {[%emt 0:00:52]} 12. axb5 {[%emt 0:17:18] The position is equal.} axb5 {[%emt 0:05:15]} 13. Rxa8 {[%emt 0:00:32]} Qxa8 {[%emt 0:01:29]} 14. Bxb5 {[%emt 0:01:02]} Bxc3 {[%emt 0:04:57]} ({Don't play} 14... Bxb5 15. Nxb5 O-O 16. c3 $16) 15. Bxc6 {[%emt 0:00:05]} Qxc6 {[%emt 0:01:17]} 16. bxc3 {[%emt 0:00:05]} O-O {[%emt 0:02:33] Weighted Error Value: White=0.03 (flawless) /Black=0.00 (flawless) .  OK:         	White=2     	Black=4      Best:        	White=1     	---} 1/2-1/2